[Event "FRA-ch Teams Top 16-Bas 2022"]
[Site "Chartres"]
[Date "2022.06.16"]
[Round "8.16"]
[White "Gennesseaux, Gabrielle"]
[Black "Afraoui, Solenn"]
[Result "0-1"]
[ECO "B51"]
[WhiteElo "1794"]
[BlackElo "1945"]
[Annotator "TA"]
[PlyCount "44"]
[EventDate "2022.06.16"]
[EventType "team-tourn"]
[EventCountry "FRA"]
[SourceTitle "playchess.com"]
[Source "ChessBase"]
[SourceQuality "1"]
[TimeControl "40/5400+30:1800+30"]

{[%evp 10,44,35,27,69,64,93,78,77,88,104,102,69,16,12,-29,-18,-25,-4,-73,-34,-74,-77,-145,-152,-141,-141,-174,-157,-199,-221,-315,-293,-714,-697,-788,-768]} 1. e4 {[%emt 0:00:35]} c5 {[%emt 0:00:22]} 2. Nf3 {[%emt 0:00:20]} d6 {[%emt 0:00:18]} 3. Bb5+ {[%emt 0:00:08]} Nd7 {[%emt 0:00:15]} 4. O-O {[%emt 0:00:11]} Ngf6 {[%emt 0:00:41]} 5. Re1 {[%emt 0:00:34]} a6 {[%emt 0:03:38]} 6. Bf1 {[%emt 0:00:19]} b5 {[%emt 0:02:32] B51: Sicilian: Moscow Variation (3 Bb5+) without 3...Bd7.} 7. a4 {[%emt 0:11:41]} Bb7 {[%emt 0:04:11]} 8. axb5 {[%emt 0:04:56]} axb5 {[%emt 0:00:14] White is better.} 9. Rxa8 {[%emt 0:00:47]} Qxa8 {[%emt 0:00:12]} 10. Bxb5 {[%emt 0:04:07]} Bxe4 {[%emt 0:03:22]} 11. Re3 {[%emt 0:08:05]} ({White should try} 11. Nc3 $14 Bxf3 12. gxf3 (12. Qxf3 Qxf3 13. gxf3 Kd8 $14)) 11... e6 $11 {[%emt 0:13:37]} 12. Ra3 {[%emt 0:08:45]} Qb7 {[%emt 0:09:55] [#]} 13. Ba6 $146 {[%emt 0:05:50]} ({Predecessor:} 13. Nc3 Bc6 14. Qe2 Be7 15. Bxc6 Qxc6 16. Ra6 Nb6 17. Qb5 Qxb5 18. Nxb5 Nc8 19. d4 {½-½ (32) Stertenbrink,G (2280)-Dueball,J (2445) Germany 1987}) 13... Bxf3 {[%emt 0:08:50]} 14. gxf3 {[%emt 0:08:12]} (14. Qxf3 $11 Qxf3 15. gxf3) 14... Qb6 {[%emt 0:05:22]} 15. Qe2 {[%emt 0:03:58]} Be7 {[%emt 0:03:49]} 16. Rb3 {[%emt 0:02:31]} (16. Qb5 $142) 16... Qa5 $17 {[%emt 0:01:41] White must now prevent ...Qa1.} 17. Ra3 {[%emt 0:04:02] [#] Prevents Qa1.} Qc7 {[%emt 0:02:49]} 18. Nc3 {[%emt 0:03:29]} O-O {[%emt 0:01:09]} 19. Ne4 {[%emt 0:08:22]} d5 {[%emt 0:02:38]} 20. Ng3 {[%emt 0:00:15]} (20. Nxf6+ $142 Nxf6 21. d4) 20... c4 $19 {[%emt 0:02:04]} 21. d3 $2 {[%emt 0:01:10] [#]} (21. Ra2 Qb6 22. d4) 21... Bxa3 {[%emt 0:00:33]} 22. bxa3 {[%emt 0:00:10]} Qb6 {[%emt 0:01:11] Weighted Error Value: White=0.53/Black=0.10 (very precise)} 0-1

[Event "FRA-ch Teams Top 16-Bas 2022"]
[Site "Chartres"]
[Date "2022.06.16"]
[Round "8.17"]
[White "Ganguly, Surya Shekhar"]
[Black "Kulaots, Kaido"]
[Result "1/2-1/2"]
[ECO "A17"]
[WhiteElo "2616"]
[BlackElo "2537"]
[Annotator "TA"]
[PlyCount "103"]
[EventDate "2022.06.16"]
[EventType "team-tourn"]
[EventCountry "FRA"]
[SourceTitle "playchess.com"]
[Source "ChessBase"]
[SourceQuality "1"]
[TimeControl "40/5400+30:1800+30"]

{[%evp 22,103,47,41,52,46,41,31,33,33,41,7,12,10,0,8,21,26,20,10,16,6,12,9,20,0,12,0,0,3,3,-23,6,0,35,0,15,-8,12,7,2,0,30,30,45,0,134,0,0,0,0,0,0,-6,13,-1,0,-41,18,19,19,0,0,0,0,0,0,-5,-5,-8,-8,-8,-8,-8,-8,-8,-15,-16,-16,-16,0,-66,-62,-47]} 1. Nf3 {[%emt 0:00:17]} Nf6 {[%emt 0:00:25]} 2. c4 {[%emt 0:00:14]} e6 {[%emt 0:03:53]} 3. Nc3 {[%emt 0:01:25]} c5 {[%emt 0:01:40]} 4. g3 {[%emt 0:01:25]} b6 {[%emt 0:00:54]} 5. e4 {[%emt 0:02:37]} Bb7 {[%emt 0:01:43]} 6. d3 {[%emt 0:01:09]} Nc6 {[%emt 0:04:18]} 7. Bg2 {[%emt 0:01:03]} Be7 {[%emt 0:00:24]} 8. O-O {[%emt 0:00:22]} O-O {[%emt 0:03:22]} 9. d4 {[%emt 0:05:53]} cxd4 {[%emt 0:01:39]} 10. Nxd4 {[%emt 0:00:12]} Nxd4 {[%emt 0:02:42]} 11. Qxd4 {[%emt 0:03:42]} d6 {[%emt 0:01:31]} 12. b3 {[%emt 0:02:03]} Qb8 {[%emt 0:12:17] A17: English Opening: 1...Nf6 with ...Bb4.} 13. Bb2 {[%emt 0:03:52]} Rd8 {[%emt 0:03:58] [#]} 14. Rfe1 $146 {[%emt 0:03:32]} ({Predecessor:} 14. Rae1 Bf8 15. Kh1 Bc6 16. f4 Nd7 17. f5 Ne5 18. fxe6 fxe6 19. Bh3 Re8 20. Nb5 Bxb5 21. cxb5 {½-½ (44) Smejkal,J (2550)-Andersson,U (2560) Banja Luka 1979}) 14... Bf8 {[%emt 0:06:07] White is slightly better.} 15. Rad1 {[%emt 0:01:59]} Nd7 {[%emt 0:03:10]} 16. Nb5 {[%emt 0:05:56][%cal Rb5d6]} Nc5 {[%emt 0:06:52]} 17. Qe3 {[%emt 0:04:02]} a6 {[%emt 0:00:45]} 18. Nd4 {[%emt 0:00:35]} Qc7 {[%emt 0:04:35]} 19. Rc1 {[%emt 0:11:13]} Rac8 {[%emt 0:00:23]} 20. b4 {[%emt 0:03:34]} Nd7 {[%emt 0:00:35]} 21. Nb3 {[%emt 0:01:36]} Qb8 {[%emt 0:02:54]} 22. a3 {[%emt 0:03:37]} Ba8 {[%emt 0:01:34]} 23. Red1 {[%emt 0:02:27]} Be7 {[%emt 0:03:41]} 24. h3 {[%emt 0:02:53]} h6 {[%emt 0:00:17]} 25. Qe2 {[%emt 0:01:23]} Bc6 {[%emt 0:03:03]} 26. Nd4 {[%emt 0:01:21]} (26. Qg4 Ne5 27. Bxe5 dxe5 $15) 26... Bb7 {[%emt 0:01:16]} (26... Ba4 $5 {[%cal Ra4d1]}) 27. f4 {[%emt 0:09:21]} Nf6 {[%emt 0:09:43]} 28. Re1 {[%emt 0:01:09]} Re8 {[%emt 0:03:14]} 29. Nb3 {[%emt 0:02:45]} Qa8 {[%emt 0:04:21]} 30. Kh2 {[%emt 0:00:35]} Bc6 {[%emt 0:02:55]} 31. Rcd1 {[%emt 0:02:56]} Red8 {[%emt 0:00:45]} 32. Nd4 {[%emt 0:01:52]} Bb7 {[%emt 0:00:10]} 33. Bf3 {[%emt 0:01:05]} Nd7 {[%emt 0:02:46] [#]} (33... Rc7 $11 {remains equal.}) 34. Nb3 {[%emt 0:01:48] White is more active.} (34. Bh5 $1 $16) 34... Rc7 $11 {[%emt 0:01:43]} 35. Bg2 {[%emt 0:00:49]} Rdc8 {[%emt 0:02:15]} 36. Rc1 {[%emt 0:01:21]} ({Much worse is} 36. Qg4 Bf6 37. Bc1 Rxc4 38. Rxd6 Bc3 $15) 36... Bc6 {[%emt 0:02:49]} 37. Red1 {[%emt 0:04:40]} Bb7 {[%emt 0:00:35]} 38. Bd4 {[%emt 0:03:16]} Bc6 {[%emt 0:01:37]} 39. Bf2 {[%emt 0:01:48]} ({Don't play} 39. Qg4 e5 40. fxe5 dxe5 $15) 39... Bb7 {[%emt 0:01:16]} (39... e5 $15) 40. a4 {[%emt 0:01:36]} a5 {[%emt 0:01:33]} 41. bxa5 {[%emt 0:09:17]} bxa5 {[%emt 0:00:09]} 42. Nd4 $1 {[%emt 0:00:29]} Nc5 {[%emt 0:05:42][%csl LRa4,LRe4][%cal Rb7e4]} 43. Nb5 {[%emt 0:01:30][%csl LRc7,LRd6]} Rd7 {[%emt 0:01:39][%cal Rb7e4]} 44. Bxc5 {[%emt 0:01:11]} Rxc5 {[%emt 0:00:03]} 45. e5 {[%emt 0:00:52][%cal Re5d6]} Bxg2 {[%emt 0:03:19]} 46. Qxg2 {[%emt 0:00:17]} Qd8 {[%emt 0:03:14]} 47. Nxd6 {[%emt 0:11:59]} Bxd6 {[%emt 0:01:22]} 48. Qd2 $1 {[%emt 0:00:05][%mdl 64] Pin} Rc6 {[%emt 0:06:18][%cal Od6a3]} 49. Rc2 {[%emt 0:04:02] [#]} Qb6 $1 {[%emt 0:09:59][%cal Od7d8] And now ...Rd8! would win.} 50. Qg2 {[%emt 0:00:59]} Qc7 {[%emt 0:01:21]} 51. exd6 {[%emt 0:04:35]} ({White should play} 51. Rcd2 $1 $11) 51... Rdxd6 $15 {[%emt 0:00:39]} ({Of course not} 51... Rcxd6 52. Rxd6 Rxd6 53. c5 $11) 52. Rxd6 {[%emt 0:00:44] Weighted Error Value: White=0.13 (very precise) /Black=0.15 (very precise)} 1/2-1/2

[Event "FRA-ch Teams Top 16-Bas 2022"]
[Site "Chartres"]
[Date "2022.06.16"]
[Round "8.18"]
[White "Dionisi, Thomas"]
[Black "Visakh N R"]
[Result "0-1"]
[ECO "C77"]
[WhiteElo "2408"]
[BlackElo "2506"]
[Annotator "TA"]
[PlyCount "118"]
[EventDate "2022.06.16"]
[EventType "team-tourn"]
[EventCountry "FRA"]
[SourceTitle "playchess.com"]
[Source "ChessBase"]
[SourceQuality "1"]
[TimeControl "40/5400+30:1800+30"]

{[%evp 12,118,8,11,13,12,18,9,12,12,9,12,8,10,17,11,12,12,24,0,0,0,0,0,0,0,0,0,0,0,0,0,0,0,0,0,0,0,18,18,18,18,18,18,18,18,79,16,116,0,0,0,-3,-116,-105,-106,-95,-108,-32,-107,-62,-71,-32,-54,-57,-239,-239,-390,-379,-346,-316,-312,-264,-312,-226,-264,-260,-265,-272,-271,-272,-264,-266,-256,-251,-248,-190,-351,-351,-351,-351,-351,-344,-344,-337,-329,-264,-245,-245,-610,-607,-596,-517,-607,-607,-591,-581,-459,-416]} 1. e4 {[%emt 0:00:04]} e5 {[%emt 0:00:08]} 2. Nf3 {[%emt 0:00:04]} Nc6 {[%emt 0:00:05]} 3. Bb5 {[%emt 0:00:08]} a6 {[%emt 0:00:06]} 4. Ba4 {[%emt 0:00:07]} Nf6 {[%emt 0:00:07]} 5. d3 {[%emt 0:00:09]} b5 {[%emt 0:00:32]} 6. Bb3 {[%emt 0:00:04]} Bc5 {[%emt 0:00:10]} 7. Nc3 {[%emt 0:00:24] Recently 7.c3 got a lot of attention.} d6 {[%emt 0:00:52] C77: Ruy Lopez: 3...a6 4 Ba4 Nf6, unusual lines.} 8. Nd5 {[%emt 0:00:10]} h6 {[%emt 0:00:40] Inhibits Bg5.} 9. c3 {[%emt 0:00:13]} Rb8 {[%emt 0:00:39] The position is equal.} 10. O-O {[%emt 0:00:42]} O-O {[%emt 0:11:32]} 11. d4 {[%emt 0:00:22]} Ba7 {[%emt 0:01:12]} 12. Be3 {[%emt 0:00:12]} Ng4 {[%emt 0:22:33] was the old line (12...Nxe4).} 13. Qe2 {[%emt 0:01:23] [#]} Nxe3 $146 {[%emt 0:06:11]} ({Predecessor:} 13... a5 14. Rad1 a4 15. Bc2 Re8 16. h3 Nxe3 17. Nxe3 Bd7 18. Rfe1 Na5 19. Bb1 Qc8 {½-½ (42) Bertaggia,M (2049)-Tornaboni,C (2024) ICCF email 2020}) 14. fxe3 {[%emt 0:00:08]} Be6 {[%emt 0:00:57]} 15. Nf6+ {[%emt 0:13:55]} gxf6 {[%emt 0:08:44][%cal Bg7f6,Bf6f5,Bf5f4][%mdl 32]} 16. d5 {[%emt 0:01:06]} Bg4 {[%emt 0:02:38]} 17. dxc6 {[%emt 0:00:35]} f5 $1 {[%emt 0:00:05]} 18. h3 {[%emt 0:28:53]} Bxf3 {[%emt 0:01:05]} 19. Rxf3 {[%emt 0:08:47]} f4 {[%emt 0:00:02]} (19... fxe4 $2 20. Rg3+ Kh7 21. Qh5 (21. Qg4 Qg5 $11) 21... Bxe3+ 22. Rxe3 $18) 20. Raf1 {[%emt 0:00:56]} Kh8 {[%emt 0:01:38]} 21. Kh1 {[%emt 0:03:12]} Bxe3 {[%emt 0:00:29]} 22. Rxe3 {[%emt 0:00:26]} fxe3 {[%emt 0:00:03]} 23. Rf5 $1 {[%emt 0:00:04]} Qh4 {[%emt 0:06:40]} 24. Qxe3 {[%emt 0:05:33]} Rg8 {[%emt 0:02:21]} 25. Kh2 $1 {[%emt 0:00:30]} Rg7 {[%emt 0:06:29]} 26. g3 {[%emt 0:07:18]} Qe7 {[%emt 0:00:02]} 27. Qxh6+ {[%emt 0:00:32]} Rh7 {[%emt 0:00:03]} 28. Qe3 {[%emt 0:00:07][%mdl 1024] White has compensation.} Rg8 {[%emt 0:15:14]} (28... f6 $11) 29. Qf3 {[%emt 0:05:53]} (29. Qf2 $16) 29... Rgg7 {[%emt 0:01:15]} (29... Rf8 $11) 30. Kg2 {[%emt 0:02:41]} (30. h4 $16) 30... Qh4 $11 {[%emt 0:01:53]} 31. g4 {[%emt 0:01:06]} Kg8 {[%emt 0:03:02][%cal Bh8g8,Bg8f8,Bf8e7][%mdl 32]} 32. Rf6 {[%emt 0:05:00]} (32. Qg3 $1 $11 {keeps the balance.}) 32... Kf8 $1 $36 {[%emt 0:01:43][%cal Og7g4][%mdl 2048] ...Rxg4+! is the strong threat. Black is really pushing.} ({Don't play} 32... Qe1 33. Rxd6 $3 {[%mdl 512]} Kh8 34. Rd1 $14) 33. Rf5 {[%emt 0:06:03]} Ke7 {[%emt 0:00:15]} 34. Qg3 {[%emt 0:05:12]} f6 {[%emt 0:00:30]} (34... Qh6 $17 35. Rf1 Rh8) 35. Bd5 {[%emt 0:03:04]} (35. Qxh4 $15 Rxh4 36. Bd5) 35... Qh6 {[%emt 0:00:26]} 36. Rf1 {[%emt 0:00:49]} Rh8 {[%emt 0:00:40] Hoping for ...Rgh7.} 37. Rf3 $1 {[%emt 0:01:08]} Qc1 {[%emt 0:00:51] Really sharp!} 38. Rf2 {[%emt 0:01:07] [#] This costs White the game.} ({Better is} 38. b4 $15) 38... Rgh7 $1 $19 {[%emt 0:00:14]} 39. Qf3 $2 {[%emt 0:01:19]} (39. Rf3 Qxb2+ 40. Kg1) 39... Qh6 {[%emt 0:00:38][%cal Rh6h3]} 40. Kg1 {[%emt 0:00:29]} Qg5 {[%emt 0:00:43]} (40... Qxh3 {is a self mate.} 41. Qxf6+ Ke8 42. Bf7+ Kf8 43. Bh5+ Kg8 44. Qf8#) 41. Kg2 {[%emt 0:02:18]} Rh4 {[%emt 0:09:07]} ({But not} 41... Rxh3 $2 42. Qxh3 Rxh3 43. Kxh3 $19) 42. Qg3 {[%emt 0:05:04]} Qh6 {[%emt 0:04:14][%cal Rh4h3]} 43. g5 {[%emt 0:04:32]} Qxg5 {[%emt 0:08:36]} 44. Qxg5 {[%emt 0:00:07]} fxg5 {[%emt 0:00:01][%mdl 4096] Endgame KRR-KRB} 45. Rf7+ {[%emt 0:00:07]} Kd8 {[%emt 0:00:05]} 46. Rd7+ {[%emt 0:02:05]} Kc8 {[%emt 0:00:01]} 47. Be6 {[%emt 0:00:12]} Kb8 {[%emt 0:00:02]} 48. Bf5 {[%emt 0:00:07]} Rg8 {[%emt 0:01:05][%cal Og5g4]} 49. Kg3 $2 {[%emt 0:05:45]} (49. b3 {might work better.}) 49... Rf4 {[%emt 0:00:13]} 50. Kg2 {[%emt 0:01:12]} g4 {[%emt 0:04:34]} 51. hxg4 {[%emt 0:01:37]} Rfxg4+ {[%emt 0:00:07]} 52. Bxg4 {[%emt 0:00:24]} Rxg4+ {[%emt 0:00:05] KR-KR} 53. Kf3 {[%emt 0:00:12]} Rh4 {[%emt 0:00:05] Threatens to win with ...Rh2.} 54. Ke3 {[%emt 0:03:20]} Rh2 {[%emt 0:00:18]} 55. b4 {[%emt 0:02:42]} (55. b3) 55... Rxa2 {[%emt 0:00:04] Black is clearly winning.} 56. Kd3 {[%emt 0:00:06]} a5 {[%emt 0:00:32]} 57. c4 {[%emt 0:01:52]} bxc4+ {[%emt 0:03:06]} 58. Kxc4 {[%emt 0:00:03]} axb4 {[%emt 0:00:13]} 59. Kb5 {[%emt 0:01:46]} Rc2 {[%emt 0:00:07] Weighted Error Value: White=0.38/Black=0.14 (very precise)} 0-1

[Event "FRA-ch Teams Top 16-Bas 2022"]
[Site "Chartres"]
[Date "2022.06.16"]
[Round "8.19"]
[White "Bailet, Pierre"]
[Black "Housieaux, David"]
[Result "1-0"]
[ECO "E69"]
[WhiteElo "2509"]
[BlackElo "2412"]
[Annotator "TA"]
[PlyCount "89"]
[EventDate "2022.06.16"]
[EventType "team-tourn"]
[EventCountry "FRA"]
[SourceTitle "playchess.com"]
[Source "ChessBase"]
[SourceQuality "1"]
[TimeControl "40/5400+30:1800+30"]

{[%evp 26,89,51,58,91,52,62,66,80,88,95,93,106,125,149,125,211,212,241,249,248,240,370,307,274,281,405,408,366,233,223,231,292,278,313,268,376,372,367,250,243,243,257,239,451,443,441,422,433,417,561,538,510,520,569,556,586,553,583,582,1236,1228,1203,1155,1127,1065]} 1. Nf3 {[%emt 0:00:09]} Nf6 {[%emt 0:00:11]} 2. g3 {[%emt 0:00:16]} g6 {[%emt 0:00:06]} 3. Bg2 {[%emt 0:00:07]} Bg7 {[%emt 0:00:04]} 4. O-O {[%emt 0:00:14]} O-O {[%emt 0:00:04]} 5. d4 {[%emt 0:00:09]} d6 {[%emt 0:00:09]} 6. c4 {[%emt 0:00:19]} Nbd7 {[%emt 0:09:04]} 7. Nc3 {[%emt 0:01:47]} e5 {[%emt 0:00:32]} 8. e4 {[%emt 0:00:27]} c6 {[%emt 0:02:42]} 9. h3 {[%emt 0:01:14]} exd4 {[%emt 0:08:48]} 10. Nxd4 {[%emt 0:01:12]} Re8 {[%emt 0:00:04]} 11. Be3 {[%emt 0:01:58]} Nc5 {[%emt 0:03:09]} 12. Qc2 {[%emt 0:01:05]} a5 {[%emt 0:03:29]} 13. Rad1 {[%emt 0:05:59]} Qe7 {[%emt 0:02:21]} 14. Rfe1 {[%emt 0:03:47]} h5 {[%emt 0:01:30] E69: King's Indian: Fianchetto: 6...Nbd7 7 0-0 e5 8 e4 c6 9 h3.} (14... Nfxe4 15. Bxe4 Nxe4 16. Nxe4 Qxe4 17. Bd2 Qxe1+ 18. Bxe1 $16) (14... Ncxe4 $2 15. Bc1 $18) 15. Bg5 {[%emt 0:08:22]} Qc7 {[%emt 0:01:34]} 16. b3 {[%emt 0:09:04]} Nh7 {[%emt 0:02:18] White is slightly better.} 17. Be3 {[%emt 0:01:29] White is more active.} Qe7 {[%emt 0:07:52] [#]} 18. f4 $146 {[%emt 0:09:13][%cal Bf2f4,Bf4f5][%mdl 32]} ({Predecessor:} 18. Qd2 Bd7 19. Nde2 Be6 20. Qxd6 Qxd6 21. Rxd6 Na6 22. Red1 Nb4 23. R6d2 Bf6 24. Bb6 {1-0 (41) Ruf,M (2350)-Nuri,K (2263) Kreuzlingen 2017}) 18... h4 {[%emt 0:14:15]} 19. g4 {[%emt 0:03:34]} g5 {[%emt 0:00:12]} 20. f5 {[%emt 0:19:10]} Be5 {[%emt 0:03:16]} (20... Bd7 $16 21. Nf3 Bxc3 22. Qxc3 Nxe4) 21. Nf3 $18 {[%emt 0:01:28]} Bxc3 {[%emt 0:08:09]} 22. Qxc3 {[%emt 0:02:45]} Nxe4 {[%emt 0:00:06]} 23. Qc2 {[%emt 0:01:17] Black must now prevent Bf2.} Bd7 {[%emt 0:01:20]} (23... Qf8 $142 24. Bc1 d5 25. cxd5 cxd5 26. Rxd5 Nef6) 24. Bd4 {[%emt 0:06:33] [#] And now Nd2 would win.} d5 {[%emt 0:02:15]} 25. Nd2 {[%emt 0:01:52][%cal Rg2e4]} Qd6 {[%emt 0:15:03]} (25... Qd8 $142 26. Bxe4 c5) 26. Nxe4 {[%emt 0:02:35]} dxe4 {[%emt 0:00:05]} 27. Bf2 {[%emt 0:01:10]} ({Not} 27. Rxe4 Rxe4 28. Qxe4 (28. Bxe4 Re8 $16) 28... c5 $18) (27. Bxe4 c5 28. Bb2 Qg3+ 29. Qg2 Qxg2+ 30. Bxg2 Rxe1+ 31. Rxe1 Bc6 32. Bxc6 bxc6 $18) 27... Qc7 {[%emt 0:01:10]} 28. Rxe4 {[%emt 0:00:06]} Rad8 {[%emt 0:10:22]} 29. Qd2 {[%emt 0:04:05]} Rxe4 {[%emt 0:00:55]} 30. Bxe4 {[%emt 0:00:08][%cal Of5f6]} f6 {[%emt 0:03:07]} (30... Re8 {was necessary.} 31. Bb1 (31. Qxd7 Qxd7 32. Rxd7 Nf6 $18) 31... Bc8) 31. Qd4 {[%emt 0:03:05]} Qf4 {[%emt 0:00:44]} 32. Qe3 {[%emt 0:03:14]} Qxe3 {[%emt 0:00:55]} 33. Bxe3 {[%emt 0:00:06] Strongly threatening Bf3.} Nf8 {[%emt 0:00:00]} 34. Bf3 {[%emt 0:01:31] Hoping for Bc5.} Ra8 $2 {[%emt 0:00:11]} (34... Re8) 35. Rd6 {[%emt 0:00:21]} a4 {[%emt 0:00:37]} 36. Rxf6 {[%emt 0:00:31]} axb3 {[%emt 0:00:07]} 37. axb3 {[%emt 0:00:09]} Ra1+ {[%emt 0:00:20]} 38. Kf2 {[%emt 0:00:13] White is clearly winning.} Be8 {[%emt 0:00:05]} 39. Rd6 {[%emt 0:00:29]} ({Weaker is} 39. Bxg5 Nh7 $18) 39... Rb1 {[%emt 0:01:22]} 40. Bxg5 {[%emt 0:00:41]} Rb2+ {[%emt 0:00:17]} 41. Rd2 {[%emt 0:30:39]} Rxb3 {[%emt 0:30:01]} 42. Bxh4 {[%emt 0:01:34] [#] aiming for Rd8. This bishop pair is nice.} Bf7 {[%emt 0:00:31]} 43. Rd8 {[%emt 0:01:32] Be7 is the strong threat.} Kg7 {[%emt 0:00:09]} 44. f6+ {[%emt 0:00:21]} Kg8 {[%emt 0:00:21]} 45. Bg5 {[%emt 0:00:19] Black got outplayed after the opening.  Weighted Error Value: White=0.13 (very precise) /Black=0.38} 1-0

[Event "FRA-ch Teams Top 16-Bas 2022"]
[Site "Chartres"]
[Date "2022.06.16"]
[Round "8.20"]
[White "Chabanon, Jean-Luc"]
[Black "Lazarev, Vladimir"]
[Result "1/2-1/2"]
[ECO "B43"]
[WhiteElo "2432"]
[BlackElo "2491"]
[Annotator "TA"]
[PlyCount "25"]
[EventDate "2022.06.16"]
[EventType "team-tourn"]
[EventCountry "FRA"]
[SourceTitle "playchess.com"]
[Source "ChessBase"]
[SourceQuality "1"]
[TimeControl "40/5400+30:1800+30"]

{[%evp 12,25,0,0,0,0,0,0,-7,0,0,-26,-33,-76,-77,-90]} 1. e4 {[%emt 0:00:16]} c5 {[%emt 0:02:53]} 2. Nf3 {[%emt 0:00:49][%cal Bg1f3,Bf3d4,Bd4e2,Be2f4][%mdl 32]} e6 {[%emt 0:01:25]} 3. d4 {[%emt 0:00:15]} cxd4 {[%emt 0:00:19]} 4. Nxd4 {[%emt 0:00:07]} a6 {[%emt 0:00:21]} 5. Nc3 {[%emt 0:00:55]} Qc7 {[%emt 0:02:20]} 6. Be3 {[%emt 0:06:03]} Nf6 {[%emt 0:07:13] 6...Bb4 injects fresh life into this line.} 7. f3 {[%emt 0:05:03]} Bb4 {[%emt 0:05:37] B43: Sicilian: Kan Variation: 5 Nc3.} 8. Nde2 $1 {[%emt 0:14:44]} Nc6 {[%emt 0:17:15]} 9. a3 {[%emt 0:11:02]} Be7 {[%emt 0:01:35]} 10. g4 {[%emt 0:07:29]} h6 {[%emt 0:07:50] [#]} 11. Nf4 $146 {[%emt 0:06:26]} ({Predecessor:} 11. Bg2 Ne5 12. b3 b5 13. h3 b4 14. Na4 Bb7 15. axb4 Bxb4+ 16. c3 Be7 17. O-O {0-1 (45) Bersamina,P (2283)-Debashis,D (2488) Manila 2013}) 11... b5 {[%emt 0:05:00]} 12. Nd3 {[%emt 0:03:01]} d5 {[%emt 0:08:06]} 13. exd5 {[%emt 0:09:31] Black took control after the opening.  Weighted Error Value: White=0.09 (flawless) /Black=0.00 (flawless)} 1/2-1/2

[Event "FRA-ch Teams Top 16-Bas 2022"]
[Site "Chartres"]
[Date "2022.06.16"]
[Round "8.21"]
[White "Postny, Evgeny"]
[Black "Heinz, Timothee"]
[Result "1-0"]
[ECO "D35"]
[WhiteElo "2563"]
[BlackElo "2381"]
[Annotator "TA"]
[PlyCount "73"]
[EventDate "2022.06.16"]
[EventType "team-tourn"]
[EventCountry "FRA"]
[SourceTitle "playchess.com"]
[Source "ChessBase"]
[SourceQuality "1"]
[TimeControl "40/5400+30:1800+30"]

{[%evp 18,73,23,17,19,21,23,28,46,43,46,46,46,46,46,46,46,46,46,46,46,46,46,46,54,54,54,46,46,46,168,178,174,167,178,178,174,171,177,172,180,168,178,170,200,199,252,241,242,256,246,246,249,245,256,285,470,480]} 1. d4 {[%emt 0:00:04]} d5 {[%emt 0:01:07]} 2. c4 {[%emt 0:00:07]} e6 {[%emt 0:00:11]} 3. Nc3 {[%emt 0:00:14]} Nf6 {[%emt 0:00:05]} 4. cxd5 {[%emt 0:00:28]} exd5 {[%emt 0:00:14]} 5. Bg5 {[%emt 0:00:09]} c6 {[%emt 0:00:09]} 6. e3 {[%emt 0:00:20]} Bf5 {[%emt 0:00:17]} 7. Qf3 {[%emt 0:03:01]} Bg6 {[%emt 0:00:11]} 8. Bxf6 {[%emt 0:00:06]} Qxf6 {[%emt 0:00:04]} 9. Qxf6 {[%emt 0:00:04]} gxf6 {[%emt 0:00:06]} 10. h4 {[%emt 0:04:27]} h5 {[%emt 0:03:10] 10...h5 scores better than 10...Nd7. D35: Queen's Gambit Declined: Exchange Variation.} 11. O-O-O $5 {[%emt 0:02:29][%mdl 4] Leaves trodden paths.} Nd7 {[%emt 0:06:26]} 12. Bd3 {[%emt 0:01:48]} Bxd3 {[%emt 0:04:49] White has an edge.} 13. Rxd3 {[%emt 0:00:18]} Rg8 {[%emt 0:02:27]} 14. g3 {[%emt 0:01:53]} f5 {[%emt 0:01:46]} 15. Nh3 {[%emt 0:05:36]} Bd6 {[%emt 0:02:15] [#]} 16. Ne2 $146 {[%emt 0:00:11]} ({Predecessor:} 16. Kd1 Nf6 17. Ke2 Ke7 18. Kf3 Ne4 19. Ne2 a5 20. Nhf4 Rh8 21. Kg2 Nf6 22. Rc1 {0-1 (65) Neelotpal,D (2486)-Babu,N (2333) Chennai 2008}) 16... Nf6 {[%emt 0:00:49]} 17. Nef4 {[%emt 0:00:18]} Kd7 {[%emt 0:02:30]} 18. Kd1 {[%emt 0:01:14][%cal Bc1d1,Bd1e2,Be2f3][%mdl 32]} a5 {[%emt 0:01:02]} 19. Ke2 {[%emt 0:03:53]} Rae8 {[%emt 0:02:15]} 20. Kf3 {[%emt 0:01:02]} Re7 {[%emt 0:01:01]} 21. Rc1 {[%emt 0:00:56]} Ra8 {[%emt 0:01:31]} 22. Rdd1 {[%emt 0:01:50][%cal Bd3d1,Bd1c1,Bc1a1,Ba1a6][%mdl 32]} a4 {[%emt 0:10:12]} 23. Nd3 {[%emt 0:00:59] Pair of Knights!} b6 {[%emt 0:01:41] This costs Black the game.} ({Better is} 23... Ree8 $14) 24. Rc2 $18 {[%emt 0:02:01]} Rc8 {[%emt 0:23:26]} 25. Rdc1 {[%emt 0:02:12]} Ne4 {[%emt 0:03:41]} 26. Nhf4 {[%emt 0:00:25][%cal Of4d5] [#] Threatens to win with Nxd5!} Nf6 {[%emt 0:00:09]} 27. b3 {[%emt 0:04:45]} axb3 {[%emt 0:04:12]} 28. axb3 {[%emt 0:01:05][%cal Ba2b3,Bb3b4][%mdl 32]} Ree8 {[%emt 0:02:37]} 29. b4 {[%emt 0:05:22]} Rc7 {[%emt 0:02:38]} 30. Ra1 {[%emt 0:01:43]} Rb7 {[%emt 0:00:31]} 31. Ra6 {[%emt 0:02:56]} Bb8 {[%emt 0:04:52]} (31... Rc8 {keeps fighting.} 32. b5 cxb5) 32. Ra8 {[%emt 0:02:45]} Re4 {[%emt 0:01:41]} 33. b5 {[%emt 0:23:40] Chess con chili.} cxb5 {[%emt 0:00:57]} 34. Rb2 {[%emt 0:00:05]} Re8 {[%emt 0:08:37]} 35. Rxb5 {[%emt 0:03:00]} Kc6 {[%emt 0:02:30]} 36. Rb2 {[%emt 0:01:14]} Kd6 $2 {[%emt 0:02:57] [#]} (36... Bd6) 37. Nc5 $1 {[%emt 0:00:59][%mdl 512] Weighted Error Value: White=0.02 (flawless) /Black=0.20 (precise)} 1-0